bitfinex/quotes_SOLUSD_20250722
["timestamp","ask_amount","ask_price","bid_price","bid_amount"]
[1753198431129,0.06,203.06,203.05,189.70296193]
[1753198431924,0.2,203.1,203.09,72.24468397]
[1753198432243,0.2,203.1,203.09,210.25806659]
[1753198432425,0.2,203.1,203.09,210.69806659]
[1753198433127,0.2,203.1,203.09,223.71879194]
[1753198434030,0.2,203.1,203.09,186.43879194]
[1753198434237,0.2,203.1,203.09,223.71879194]
[1753198436018,0.2,203.1,203.09,148.44199194]
[1753198436320,0.2,203.1,203.09,186.14199194]
[1753198436642,0.2,203.1,203.09,185.70199194]
[1753198437226,0.2,203.1,203.09,186.14199194]
[1753198437628,0.2,203.1,203.09,191.06499194]
[1753198438123,0.2,203.1,203.09,208.23160932]
[1753198438331,0.2,203.1,203.09,235.20499194]
[1753198438632,0.2,203.1,203.09,230.28199194]
[1753198438942,0.2,203.18,203.14,16.78468397]
[1753198439125,0.2,203.18,203.17,12.29338262]
[1753198439318,0.2,203.18,203.17,66.83026524]
[1753198439629,0.88,203.18,203.17,37.26]
[1753198439937,0.2,203.18,203.17,37.26]
[1753198440143,0.2,203.18,203.17,49.55338262]
[1753198440315,0.2,203.18,203.17,29.07806659]
[1753198440514,0.2,203.18,203.14,88.68]
[1753198440515,18.09512688,203.18,203.14,88.24]
[1753198440721,12.29338262,203.15,203.14,125.5]
[1753198440920,12.97338262,203.15,203.14,125.5]
[1753198441227,0.2,203.18,203.17,42.78468397]
[1753198441421,0.2,203.26,203.22,16.78468397]
[1753198441636,0.2,203.26,203.25,34.00106659]
[1753198441825,0.2,203.26,203.25,63.95307151]
[1753198442029,0.2,203.26,203.25,101.19307151]
[1753198442217,0.2,203.26,203.25,184.01806659]
[1753198442433,0.2,203.26,203.25,201.25269914]
[1753198442621,0.06,203.34,203.33,46.24468397]
[1753198442827,0.02,203.34,203.33,96.26987793]
[1753198443020,0.02,203.34,203.33,115.93799134]
[1753198443250,0.02,203.34,203.33,84.53806659]
[1753198443550,0.02,203.34,203.33,37.24]
[1753198443755,0.02,203.34,203.33,95.77806659]
[1753198443938,0.02,203.34,203.33,96.26987793]
[1753198444531,0.02,203.34,203.33,46.73649531]
[1753198444734,0.02,203.34,203.33,59.02987793]
[1753198445042,0.02,203.34,203.33,96.24987793]
[1753198445248,0.02,203.34,203.33,101.16799134]
[1753198446030,0.02,203.34,203.33,59.02987793]
[1753198446253,0.02,203.34,203.3,12.29338262]
[1753198446254,0.7,203.34,203.3,12.29338262]
[1753198446429,0.02,203.34,203.33,16.78468397]
[1753198446632,0.02,203.34,203.33,66.29806659]
[1753198446838,0.02,203.34,203.23,6.0169]
[1753198446839,12.99338262,203.34,203.23,6.0169]
[1753198447057,12.29338262,203.3,203.25,37.22]
[1753198447276,0.68,203.3,203.26,16.78468397]
[1753198447557,0.68,203.3,203.25,49.51338262]
[1753198447558,12.29338262,203.32,203.27,37.22]
[1753198447767,12.97338262,203.31,203.28,37.22]
[1753198447932,12.97338262,203.3,203.28,37.22]
[1753198448134,0.02,203.34,203.29,16.78468397]
[1753198448440,0.02,203.34,203.3,37.22]
[1753198448642,0.02,203.34,203.31,16.78468397]
[1753198448944,0.7,203.34,203.32,37.22]
[1753198449142,0.02,203.34,203.33,16.78468397]
[1753198449358,0.02,203.34,203.33,117.31806659]
[1753198449857,0.02,203.34,203.33,146.77806659]
[1753198451175,0.02,203.34,203.33,139.40279738]
[1753198451458,0.02,203.34,203.33,151.69618]
[1753198451663,0.02,203.34,203.33,139.40279738]
[1753198451841,0.02,203.34,203.33,151.69618]
[1753198452472,6.5798,203.54,203.37,72.24468397]
[1753198452674,12.38201931,203.55,203.49,12.29338262]
[1753198452675,0.74,203.52,203.49,12.29338262]
[1753198452837,0.74,203.52,203.49,49.49338262]
[1753198453152,0.88,203.5,203.45,21.69986146]
[1753198453351,0.88,203.5,203.48,12.29338262]
[1753198453566,0.88,203.5,203.46,37.2]
[1753198453567,0.88,203.5,203.49,49.49338262]
[1753198454064,0.88,203.5,203.49,37.2]
[1753198454436,0.2,203.5,203.49,49.49338262]
[1753198455046,0.2,203.5,203.49,66.27806659]
[1753198455250,0.2,203.5,203.49,12.29338262]
[1753198455502,0.88,203.5,203.47,12.39746426]
[1753198455781,0.2,203.5,203.49,12.39593672]
[1753198456072,0.2,203.5,203.49,0.1025541]
[1753198456440,0.2,203.5,203.49,37.2825541]
[1753198456640,0.88,203.5,203.49,37.2825541]
[1753198456869,18.08738753,203.5,203.41,26.0]
[1753198457070,12.29338262,203.47,203.4,12.29338262]
[1753198457275,12.97338262,203.46,203.41,37.18]
[1753198457567,12.29338262,203.43,203.42,37.18]
[1753198457740,0.72,203.43,203.42,37.18]
[1753198458542,0.72,203.47,203.42,49.47338262]
[1753198458743,0.92,203.5,203.46,12.29338262]
[1753198459048,0.72,203.49,203.47,37.18]
[1753198459246,0.72,203.49,203.47,125.68]
[1753198459448,0.2,203.5,203.48,12.29338262]
[1753198459653,0.2,203.5,203.49,37.18]
[1753198460156,0.2,203.5,203.49,49.47338262]
[1753198460659,0.92,203.5,203.48,88.5]
[1753198460843,0.2,203.5,203.49,37.18]
[1753198461044,12.49338262,203.5,203.42,88.5]
[1753198461246,12.29338262,203.45,203.43,37.18]
[1753198461565,12.29338262,203.45,203.38,12.29338262]
[1753198461566,13.01338262,203.44,203.38,88.5]
[1753198461762,13.01338262,203.44,203.39,37.18]
[1753198461969,0.72,203.43,203.39,37.18]
[1753198462274,4.9152528,203.45,203.36,26.0]
[1753198462275,0.72,203.42,203.4,37.18]
[1753198462450,0.72,203.41,203.4,37.18]
[1753198462765,13.01338262,203.41,203.4,37.18]
[1753198462955,0.72,203.41,203.4,37.18]
[1753198463150,13.01338262,203.41,203.4,37.18]
[1753198463464,17.92956176,203.41,203.4,37.18]
[1753198463777,13.01338262,203.41,203.4,37.18]
[1753198464250,0.72,203.41,203.4,37.18]
[1753198464772,0.72,203.45,203.4,42.09642084]
[1753198464948,13.01338262,203.45,203.4,42.09642084]
[1753198465148,0.72,203.45,203.4,42.09642084]
[1753198465846,0.72,203.45,203.4,54.38980346]
[1753198466071,12.29338262,203.47,203.41,17.21638262]
[1753198466278,13.01338262,203.48,203.42,37.18]
[1753198466478,0.72,203.48,203.43,58.53806659]
[1753198466658,0.2,203.5,203.45,12.29338262]
[1753198466866,0.2,203.5,203.46,37.18]
[1753198467181,0.2,203.5,203.48,12.29338262]
[1753198467360,0.2,203.5,203.49,49.47338262]
[1753198467568,0.2,203.5,203.49,189.13231299]
[1753198468084,0.2,203.5,203.49,194.05531299]
[1753198468559,0.2,203.5,203.49,189.13231299]
[1753198468956,0.2,203.5,203.49,194.16531299]
[1753198469154,0.06,203.52,203.51,72.24468397]
[1753198469378,0.06,203.52,203.51,122.18944293]
[1753198469554,0.06,203.52,203.51,215.22183004]
[1753198469960,0.06,203.52,203.51,220.03483004]
[1753198470176,1e-08,203.55,203.54,42.78468397]
[1753198470379,1e-08,203.55,203.54,110.93937051]
[1753198470585,0.06,203.57,203.56,86.99468397]
[1753198470888,0.06,203.57,203.56,122.18932223]
[1753198471182,0.06,203.59,203.58,65.91768397]
[1753198471375,1e-08,203.61,203.6,65.91768397]
[1753198471550,0.92,203.73,203.66,4.923]
[1753198471750,0.92,203.73,203.65,29.46]
[1753198471751,0.2,203.73,203.67,79.40437294]
[1753198471959,0.72,203.69,203.61,29.46]
[1753198472150,0.72,203.72,203.66,12.29338262]
[1753198472371,0.2,203.73,203.69,12.29338262]
[1753198472550,0.2,203.73,203.69,147.03806659]
[1753198472755,12.35338262,203.7,203.65,0.06966696]
[1753198473088,12.35338262,203.7,203.66,16.78468397]
[1753198473255,0.72,203.69,203.65,0.06966696]
[1753198473451,0.72,203.68,203.66,37.16]
[1753198473657,13.01338262,203.67,203.65,0.06966696]
[1753198473963,0.72,203.67,203.66,37.26]
[1753198474558,13.01338262,203.67,203.65,0.06966696]
[1753198474764,12.29338262,203.66,203.65,0.06966696]
[1753198474962,12.29338262,203.66,203.65,37.38966696]
[1753198475168,0.06,203.7,203.65,37.38966696]
[1753198475372,12.29338262,203.67,203.65,37.38966696]
[1753198475561,4.96921063,203.7,203.66,46.24468397]
[1753198475562,0.06,203.7,203.66,46.24468397]
[1753198475759,0.06,203.7,203.67,37.3]
[1753198476768,0.06,203.7,203.68,16.78468397]
[1753198477071,0.06,203.7,203.69,54.10468397]
[1753198477268,0.06,203.7,203.69,66.39806659]
[1753198477480,0.06,203.7,203.69,54.10468397]
[1753198477690,0.06,203.7,203.69,59.01410514]
[1753198477854,0.06,203.7,203.69,189.26748776]
[1753198478261,0.2,203.73,203.72,72.24468397]
[1753198478585,0.2,203.73,203.72,210.80893641]
[1753198478770,0.2,203.73,203.72,210.42806659]
[1753198479159,0.06,203.75,203.74,72.24468397]
[1753198479375,0.06,203.75,203.74,210.78888822]
[1753198479559,0.06,203.75,203.74,215.20628294]
[1753198479993,0.06,203.75,203.74,165.65290032]
[1753198480285,0.06,203.75,203.7,29.46]
[1753198480463,0.06,203.75,203.74,72.24468397]
[1753198480667,0.06,203.75,203.74,109.48468397]
[1753198480984,0.06,203.75,203.74,26.0]
[1753198481191,0.06,203.75,203.74,63.26]
[1753198481887,0.06,203.75,203.74,114.90372195]
[1753198482056,0.06,203.75,203.74,77.15290032]
[1753198482258,0.06,203.75,203.74,109.52468397]
[1753198482487,0.78,203.75,203.69,64.8]
[1753198482699,0.78,203.75,203.7,84.97363465]
[1753198482864,0.06,203.75,203.71,12.29338262]
[1753198483061,0.06,203.75,203.73,16.78468397]
[1753198483262,12.35338262,203.75,203.74,37.3]
[1753198483463,13.07338262,203.75,203.74,37.28]
[1753198483902,13.07338262,203.75,203.69,35.34]
[1753198483903,17.98135808,203.75,203.69,35.34]
[1753198484062,0.78,203.75,203.7,37.3]
[1753198484268,0.06,203.75,203.73,12.29338262]
[1753198484586,0.06,203.75,203.74,66.86888822]
[1753198484764,0.06,203.75,203.74,96.32888822]
[1753198485090,0.06,203.75,203.74,184.82888822]
[1753198485289,0.06,203.75,203.74,184.44806659]
[1753198485484,0.06,203.75,203.74,176.96768397]
[1753198485684,0.06,203.75,203.74,189.24628294]
[1753198486279,0.06,203.75,203.74,176.97290032]
[1753198486485,0.06,203.75,203.74,156.86928294]
[1753198486693,0.1,203.78,203.75,23.11728397]
[1753198486991,0.06,203.8,203.75,23.11728397]
[1753198486992,0.06,203.8,203.79,72.24468397]
[1753198487197,0.06,203.8,203.79,122.3487678]
[1753198487375,0.06,203.8,203.79,121.85806659]
[1753198487571,0.01,203.8,203.79,132.4192369]
[1753198487775,0.01,203.8,203.79,89.44507871]
[1753198487980,0.01,203.8,203.79,230.48577992]
[1753198488169,0.01,203.8,203.79,229.99507871]
[1753198488366,0.01,203.8,203.79,215.24507871]
[1753198488596,0.01,203.8,203.79,210.33806659]
[1753198488895,0.01,203.8,203.79,215.24507871]
[1753198489078,0.2,203.81,203.79,215.24507871]
[1753198489267,0.2,203.81,203.8,46.7353611]
[1753198489475,0.2,203.81,203.8,63.95174372]
[1753198489785,0.2,203.81,203.8,68.85851506]
[1753198490176,0.2,203.81,203.8,63.93551506]
[1753198490376,0.2,203.81,203.8,57.29629063]
[1753198490699,0.2,203.81,203.8,74.51267325]
[1753198491199,0.2,203.81,203.8,75.01267325]
[1753198491577,0.06,203.84,203.83,72.24468397]
[1753198491777,0.06,203.84,203.83,145.14226146]
[1753198492100,0.06,203.84,203.83,138.99749836]
[1753198492397,0.2,203.96,203.95,26.0]
[1753198492698,0.2,203.96,203.95,92.31806659]
[1753198493186,0.2,203.96,203.95,92.80838284]
[1753198493786,0.2,203.96,203.95,0.49031625]
[1753198493787,0.87,203.96,203.95,0.49031625]
[1753198493990,0.87,203.96,203.95,63.34]
[1753198494476,0.87,203.96,203.95,75.63338262]
[1753198494799,0.2,203.96,203.95,75.63338262]
[1753198495009,0.87,203.96,203.89,0.49046054]
[1753198495176,0.67,203.95,203.93,26.0]
[1753198495503,0.2,203.96,203.94,37.32]
[1753198496001,0.67,203.95,203.94,37.32]
[1753198496308,0.67,203.95,203.94,49.61338262]
[1753198496598,0.67,203.95,203.91,38.29338262]
[1753198496779,0.67,203.94,203.92,37.3]
[1753198497196,0.67,203.94,203.93,12.29338262]
[1753198497388,0.2,203.96,203.95,26.0]
[1753198497596,0.2,203.96,203.95,63.3]
[1753198497998,0.87,203.96,203.95,63.3]
[1753198498705,5.77292214,203.96,203.9,12.29338262]
[1753198499000,12.29338262,203.94,203.91,37.24]
[1753198499203,0.87,203.96,203.92,12.29338262]
[1753198499405,0.67,203.95,203.93,37.24]
[1753198499609,12.96338262,203.94,203.88,47.59338262]
[1753198499912,12.29338262,203.89,203.88,123.8]
[1753198500088,17.86798804,203.89,203.8,87.56]
[1753198500286,12.29338262,203.85,203.8,87.06]
[1753198500540,12.29338262,203.81,203.77,87.06]
[1753198500683,12.29338262,203.79,203.77,87.06]
[1753198500891,12.96338262,203.78,203.72,87.06]
[1753198501083,0.67,203.77,203.73,37.26]
[1753198501291,12.29338262,203.74,203.73,37.26]
[1753198501493,0.67,203.76,203.73,37.26]
[1753198501694,0.67,203.8,203.75,12.29338262]
[1753198501988,12.96338262,203.79,203.76,37.26]
[1753198502187,9.66338262,203.77,203.76,37.26]
[1753198502409,12.96338262,203.77,203.76,37.26]
[1753198502715,12.29338262,203.78,203.76,37.24]
[1753198502881,4.90680864,203.8,203.76,37.24]
[1753198503082,0.67,203.82,203.77,12.29338262]
[1753198503308,12.29338262,203.82,203.77,87.55074937]
[1753198503501,23.43696014,203.86,203.72,0.72]
[1753198503502,12.29338262,203.78,203.72,16.78468397]
[1753198503702,12.29338262,203.75,203.72,88.5]
[1753198503912,12.29338262,203.73,203.66,29.46]
[1753198504214,12.96338262,203.72,203.6,88.5]
[1753198504427,4.90825249,203.74,203.56,0.03]
[1753198504428,12.29338262,203.63,203.61,37.38]
[1753198504590,12.29338262,203.63,203.62,37.4]
[1753198504793,12.29338262,203.63,203.56,100.82338262]
[1753198504794,12.96338262,203.63,203.56,0.03]
[1753198504994,12.29338262,203.59,203.57,37.4]
[1753198505197,0.67,203.63,203.57,37.4]
[1753198505624,12.29338262,203.6,203.57,37.4]
[1753198506118,0.67,203.63,203.57,37.4]
[1753198506321,12.29338262,203.62,203.57,37.4]
[1753198506492,12.29338262,203.65,203.58,29.79806659]
[1753198506694,0.67,203.68,203.62,12.29338262]
[1753198506917,12.29338262,203.69,203.63,37.36]
[1753198507117,12.29338262,203.73,203.66,12.29338262]
[1753198507331,0.67,203.75,203.67,37.38]
[1753198507620,12.29338262,203.73,203.67,37.38]
[1753198508004,12.29338262,203.71,203.67,37.38]
[1753198508198,0.67,203.71,203.67,37.38]
[1753198508600,12.29338262,203.72,203.67,37.38]
[1753198508918,12.29338262,203.74,203.68,29.79806659]
[1753198509124,12.29338262,203.74,203.68,16.78468397]
[1753198509511,12.29338262,203.74,203.69,37.38]
[1753198509711,12.29338262,203.78,203.71,12.29338262]
[1753198509915,12.29338262,203.78,203.7,17.99560198]
[1753198509916,12.29338262,203.76,203.72,37.38]
[1753198510114,12.29338262,203.77,203.72,37.38]
[1753198510505,0.67,203.77,203.72,125.88]
[1753198510706,12.96338262,203.77,203.72,125.88]
[1753198510903,12.29338262,203.74,203.72,125.88]
[1753198511098,12.29338262,203.73,203.72,88.5]
[1753198511302,12.29338262,203.76,203.72,37.36]
[1753198512204,12.29338262,203.77,203.72,37.36]
[1753198512407,12.96338262,203.78,203.72,37.36]
[1753198512608,12.29338262,203.76,203.72,125.86]
[1753198512806,12.29338262,203.77,203.72,125.86]
[1753198513025,12.29338262,203.73,203.72,88.5]
[1753198513317,12.96338262,203.73,203.72,37.32]
[1753198513941,0.67,203.73,203.72,37.32]
[1753198514146,17.87183989,203.73,203.72,37.32]
[1753198514624,17.87183989,203.73,203.62,0.75]
[1753198514625,17.87183989,203.73,203.71,37.3]
[1753198514837,26.0,203.69,203.62,88.53]
[1753198515048,26.0,203.69,203.63,37.28]
[1753198515049,0.67,203.68,203.63,37.28]
[1753198515331,12.29338262,203.64,203.63,37.28]
[1753198515541,12.96338262,203.64,203.63,37.28]
[1753198515837,12.96338262,203.64,203.62,0.03]
[1753198516129,17.20521522,203.59,203.58,37.31]
[1753198516333,17.87521522,203.59,203.58,0.03]
[1753198516934,26.0,203.57,203.56,0.03]
[1753198517137,50.58676524,203.57,203.56,0.03]
[1753198517433,26.66,203.57,203.56,0.03]
[1753198517732,38.95338262,203.57,203.56,0.03]
[1753198517931,16.78468397,203.55,203.51,0.03]
[1753198518139,17.20690463,203.52,203.51,0.03]
[1753198518515,17.86690463,203.52,203.51,0.03]
[1753198519900,12.95338262,203.52,203.51,0.03]
[1753198520105,17.86690463,203.52,203.51,0.03]
[1753198520439,12.29338262,203.52,203.51,37.35]
[1753198520640,47.3,203.62,203.51,37.35]
[1753198520641,12.29338262,203.55,203.51,37.35]
[1753198520807,12.29338262,203.53,203.51,37.35]
[1753198521013,12.29338262,203.55,203.51,37.35]
[1753198521520,12.29338262,203.52,203.51,0.03]
[1753198522107,12.29338262,203.55,203.51,88.53]
[1753198522307,5.57110892,203.62,203.52,0.69]
[1753198522510,12.29338262,203.55,203.53,37.32]
[1753198522813,12.29338262,203.57,203.53,125.82]
[1753198523135,0.66,203.63,203.54,29.76806659]
[1753198523339,12.29338262,203.61,203.56,16.78468397]
[1753198523511,12.29338262,203.62,203.57,37.36]
[1753198523706,12.29338262,203.62,203.57,38.05]
[1753198523911,0.66,203.67,203.58,0.69]
[1753198523912,12.29338262,203.64,203.58,0.69]
[1753198524142,12.29338262,203.64,203.57,49.65338262]
[1753198524143,12.29338262,203.62,203.57,37.36]
[1753198524440,12.29338262,203.59,203.58,37.36]
[1753198524607,12.29338262,203.59,203.55,26.69]
[1753198524946,12.29338262,203.59,203.56,37.34]
[1753198525812,4.91071985,203.64,203.51,0.03]
[1753198525813,12.29338262,203.57,203.51,0.03]
[1753198526111,0.66,203.58,203.51,0.03]
[1753198526112,0.66,203.58,203.52,37.34]
[1753198526309,12.29338262,203.53,203.52,37.34]
[1753198526524,12.95338262,203.53,203.51,0.03]
[1753198526734,12.95338262,203.52,203.51,0.03]
[1753198527112,17.1931031,203.57,203.51,0.03]
[1753198527317,12.95338262,203.52,203.51,0.03]
[1753198527719,6.0542,203.56,203.51,0.72]
[1753198528047,12.29338262,203.57,203.52,37.36]
[1753198528245,12.29338262,203.57,203.53,0.69]
[1753198528536,12.29338262,203.57,203.53,88.5]
[1753198528832,4.91135013,203.61,203.53,88.5]
[1753198528833,12.29338262,203.54,203.53,88.5]
[1753198529332,12.29338262,203.54,203.53,125.9]
[1753198529636,12.29338262,203.54,203.53,37.4]
[1753198530330,17.20642182,203.54,203.53,37.4]
[1753198531605,17.86642182,203.54,203.51,0.03]
[1753198531815,12.29338262,203.52,203.51,0.03]
[1753198532243,4.9142464,203.49,203.47,0.03]
[1753198532412,12.29338262,203.48,203.47,0.03]
[1753198532741,12.95338262,203.48,203.47,1e-08]
[1753198533317,12.29338262,203.48,203.47,1e-08]
[1753198533532,12.95338262,203.48,203.47,1e-08]
[1753198533837,29.73806659,203.48,203.47,1e-08]
[1753198534042,38.95338262,203.48,203.47,1e-08]
[1753198534209,60.6525545,203.48,203.47,1e-08]
[1753198534422,24.58676524,203.43,203.35,0.03]
[1753198534620,12.29338262,203.36,203.35,0.03]
[1753198534820,12.29338262,203.36,203.35,37.37]
[1753198535623,4.91448791,203.48,203.35,50.35338262]
[1753198535831,4.91426755,203.49,203.4,12.29338262]
[1753198536031,12.29338262,203.48,203.41,38.64161791]
[1753198536240,12.29338262,203.48,203.41,50.93500053]
[1753198536447,12.29338262,203.47,203.41,38.64161791]
[1753198536753,4.91352201,203.52,203.42,12.29338262]
[1753198536926,12.29338262,203.48,203.42,0.69]
[1753198537256,4.91352201,203.52,203.42,0.69]
[1753198537424,6.344,203.62,203.48,12.29338262]
[1753198537628,12.29338262,203.55,203.49,38.17]
[1753198537935,12.29338262,203.57,203.5,12.29338262]
[1753198538134,12.29338262,203.58,203.51,0.69]
[1753198538336,12.29338262,203.55,203.51,0.69]
[1753198538647,12.29338262,203.54,203.52,37.5]
[1753198538826,12.29338262,203.55,203.52,37.5]
[1753198539153,12.29338262,203.53,203.46,0.69]
[1753198539354,12.29338262,203.5,203.47,37.48]
[1753198539537,26.0,203.57,203.48,12.98338262]
[1753198541941,12.29338262,203.54,203.49,38.17]
[1753198542335,12.29338262,203.55,203.5,0.69]
[1753198542536,4.91207387,203.58,203.49,37.48]
[1753198542537,12.29338262,203.52,203.49,37.48]
[1753198542953,12.29338262,203.52,203.5,37.46]
[1753198543152,12.29338262,203.52,203.51,37.44]
[1753198543854,12.29338262,203.52,203.48,26.0]
[1753198544152,12.29338262,203.52,203.49,37.42]
[1753198544342,12.29338262,203.53,203.5,0.69]
[1753198544539,12.29338262,203.56,203.51,37.42]
[1753198544942,12.29338262,203.57,203.52,0.69]
[1753198545243,12.29338262,203.58,203.53,0.69]
[1753198545438,12.29338262,203.59,203.54,0.69]
[1753198545660,4.91014435,203.66,203.57,12.29338262]
[1753198545955,17.20347085,203.67,203.6,12.29338262]
[1753198546272,0.06,203.69,203.6,12.29338262]
[1753198546273,0.06,203.69,203.66,12.29338262]
[1753198546435,0.06,203.69,203.67,37.6]
[1753198546757,0.06,203.69,203.67,38.29]
[1753198547060,0.06,203.69,203.68,0.69]
[1753198547258,12.35338262,203.69,203.64,26.0]
[1753198547429,12.35338262,203.69,203.65,37.6]
[1753198547630,0.06,203.69,203.65,38.32]
[1753198547826,0.06,203.69,203.66,0.72]
[1753198548234,0.06,203.69,203.6,139.65604383]
[1753198548235,12.29338262,203.67,203.62,0.72]
[1753198548455,12.29338262,203.66,203.63,37.58]
[1753198548838,4.90990055,203.68,203.63,38.3]
[1753198549147,12.29338262,203.67,203.63,38.3]
[1753198549350,17.20328317,203.68,203.63,38.3]
[1753198549557,12.29338262,203.67,203.63,38.3]
[1753198549757,12.29338262,203.66,203.6,26.0]
[1753198549927,12.29338262,203.63,203.61,37.54]
[1753198550344,12.29338262,203.62,203.54,88.5]
[1753198550553,12.29338262,203.61,203.55,37.52]
[1753198550763,12.29338262,203.61,203.55,63.52]
[1753198551056,12.29338262,203.6,203.55,63.52]
[1753198551242,12.29338262,203.64,203.58,12.29338262]
[1753198551449,12.29338262,203.63,203.59,37.5]
[1753198551643,12.29338262,203.64,203.6,0.72]
[1753198551960,12.29338262,203.64,203.61,0.72]
[1753198552536,4.91135013,203.61,203.55,88.5]
[1753198552754,5.57135013,203.61,203.56,37.5]
[1753198552963,12.29338262,203.57,203.56,37.5]
[1753198553739,12.29338262,203.57,203.54,37.48]
[1753198553961,12.29338262,203.55,203.54,37.48]
[1753198554783,17.20618045,203.55,203.54,37.48]
[1753198554942,17.86618045,203.55,203.5,37.46]
[1753198555141,12.29338262,203.51,203.5,37.46]
[1753198556148,12.95338262,203.51,203.5,37.46]
[1753198556353,12.29338262,203.51,203.5,37.46]
[1753198556846,17.20714607,203.51,203.5,37.46]
[1753198557853,12.29338262,203.51,203.5,37.46]
[1753198559043,55.06487661,203.58,203.5,37.46]
[1753198559368,12.29338262,203.51,203.5,37.46]
[1753198559747,12.29338262,203.52,203.5,37.46]
[1753198560485,34.55598399,203.62,203.5,37.46]
[1753198560486,0.66,203.63,203.54,26.0]
[1753198560652,12.29338262,203.63,203.56,12.29338262]
[1753198560850,12.29338262,203.63,203.57,0.72]
[1753198561058,4.91110892,203.62,203.57,0.72]
[1753198561276,12.29338262,203.6,203.58,37.34]
[1753198561474,0.72,203.69,203.64,88.5]
[1753198561670,12.29338262,203.65,203.59,0.72]
[1753198561868,12.29338262,203.64,203.6,37.34]
[1753198562054,12.29338262,203.64,203.6,125.84]
[1753198562250,12.29338262,203.65,203.6,126.56]
[1753198562670,12.29338262,203.65,203.61,0.72]
[1753198562883,30.90966221,203.68,203.61,0.72]
[1753198562884,17.20304483,203.68,203.62,0.72]
[1753198563097,4.91062659,203.64,203.62,0.72]
[1753198563382,12.29338262,203.63,203.62,88.5]
[1753198563551,12.95338262,203.63,203.59,37.3]
[1753198563750,12.29338262,203.6,203.58,37.3]
[1753198563959,12.29338262,203.59,203.58,37.3]
[1753198564162,26.0,203.62,203.58,37.3]
[1753198564703,12.29338262,203.6,203.58,37.3]
[1753198564900,12.29338262,203.59,203.58,37.3]
[1753198565070,12.27596366,203.65,203.58,38.02]
[1753198565271,12.29338262,203.61,203.58,38.02]
[1753198565472,12.29338262,203.63,203.59,0.72]
[1753198565697,12.29338262,203.64,203.6,0.72]
[1753198565876,17.20378234,203.65,203.6,0.72]
[1753198566194,12.29338262,203.66,203.61,0.72]
[1753198566408,12.29338262,203.65,203.62,37.26]
[1753198566789,4.90966221,203.68,203.63,37.26]
[1753198567100,12.29338262,203.65,203.59,1.21118326]
[1753198567299,4.90966221,203.68,203.61,12.29338262]
[1753198567502,12.29338262,203.67,203.6,50.25338262]
[1753198567674,12.29338262,203.67,203.61,4.923]
[1753198568282,12.29338262,203.67,203.64,26.0]
[1753198568481,0.06,203.69,203.65,37.92]
[1753198568685,0.06,203.69,203.66,0.72]
[1753198568891,0.06,203.69,203.68,12.29338262]
[1753198569102,0.06,203.69,203.68,101.28434884]
[1753198569381,0.06,203.69,203.68,102.00434884]
[1753198569807,0.06,203.69,203.68,106.92734884]
[1753198570103,0.06,203.69,203.68,106.43638262]
[1753198570292,0.06,203.69,203.68,78.93106659]
[1753198570484,0.06,203.69,203.68,79.42203281]
[1753198570678,0.06,203.69,203.68,205.12203281]
[1753198570872,0.06,203.69,203.68,209.5407288]
[1753198571203,0.06,203.7,203.69,65.91768397]
[1753198571383,0.06,203.7,203.69,166.71106659]